{"text_format":"2","workbook":"xlsx","n_sheets":1,"sheets":["Sheet1"],"not_rendered":{"charts":0,"images":0,"macros":0,"external_links":0,"defined_names":0,"comments":0,"pivot_tables":0},"unopened":[],"bounds":{"document_bytes":16777216,"sheet_cells":100000,"run_cost":"one","rows_first":2000,"rows_last":500,"rows_between":2000,"halvings":0,"cell_chars":16384,"cell_head_chars":4096},"cells_cut":0,"cells_raw":0,"read":"whole","date_system":"1900"}

{"sheet":"Sheet1","index":0,"n_rows":75,"n_cols":9,"rows_kept":75,"cut":false,"hidden":false,"merged":[[0,5,1,5],[0,6,1,6],[0,0,1,0],[0,1,1,1],[0,2,1,2],[0,3,1,3],[0,4,1,4]]}
["Centres Name ","TIMES OF INDIA","NAV BHARAT TIMES ","HINDUSTAN TIMES","DAINIK BHASKAR","HINDI DAILY OTHERS","TOTAL COPIES"]
[{"$nulls":6},"COPIES"]
["Bakhtawarpur chowk,sohna Rd/ Sec-46",4500,2000,2500,1000,700,{"$f":"SUM(B3:F3)","v":10700},null,"The hubs marked in bold is the main hub, below which are the areas which gets covered."]
["Tatvam Villa, Mapel Height, south city-II",{"$nulls":5},0,null,"If areas are not listed or visible below, it can be considered that the highlighted hub represents the area to be covered."]
["bestech spa, sec-45,46,47,38,M2K Aura, ",{"$nulls":5},0]
["Tulip Orange, Vatika City, GPL Eden Hieght.",{"$nulls":5},0]
["Nirvana country, Unitech fresco, Wembly  Estate",{"$nulls":5},0]
["Malibo Town",1500,700,800,500,500,4000]
["JMD, Subhash Chowk, ",3500,1500,2000,1000,800,8800]
["sispal vihar, Rosewood, Li-lack,",{"$nulls":5},0]
["Nirvana Country,Harmony Escape",{"$nulls":5},0]
["Nine Ex",2500,1000,800,1000,500,5800]
["Vipul world, Vipul Greens, Parsvanath green ville",{"$nulls":5},0]
["Park view 1,2, Central Park 2.",{"$nulls":5},0]
["Uppal South End ",1700,800,900,500,300,4200]
["Orchid Petals, Eldeco Villas",{"$nulls":5},0]
["Tulip Market ",3000,1800,2500,1000,600,8900]
["Tulip Purple, Tulip White, Tulip Ivory, ",{"$nulls":5},0]
["BPTP Astaire Garden, Paras Irene, M3M Escala",{"$nulls":5},0]
["Close bus stand( previous Boom Plaza)",2000,600,900,400,600,4500]
["Rail Vihar, Blossom-II",{"$nulls":5},0]
["Close north, Close south,Habiscus",{"$nulls":5},0]
["DLF Phase-V/ club house",3400,1500,2000,600,300,7800]
["Priston, Carlston, Willingston, ",{"$nulls":5},0]
["Western Heights, Park Place.",{"$nulls":5},0]
["Golf Course Road/ Sec-54",3800,2000,2500,500,300,9100]
["Verandas, Suncity, Blair,",{"$nulls":5},0]
["Parsvanth, La-lagun, Ireo Grand Ark",{"$nulls":5},0]
["Emaar Palm Spring",{"$nulls":5},0]
["Palm Drive ",1700,1000,900,600,500,4700]
["Pioneer Park, BPTP park prime, Ireo Grand Arch ",{"$nulls":5},0]
["palm Drive, Ansal Essentia, IREO uptown",{"$nulls":5},0]
["Old Gurgaon",30000,8000,15000,5000,2000,60000]
["Sec-3,4,5,6,7,9,12,14,15,17, Civil Lines",{"$nulls":5},0]
["Miawali colony, krishna colony, ",{"$nulls":5},{"$f":"SUM(B35:F35)","v":0}]
["Omvihar, Shanti Nagar, Jacubpura ",{"$nulls":5},0]
["Palam Vihar ",3800,1500,1800,1500,500,9100]
["Sec-22,23, New Palam Vihar,",4200,1800,2000,1200,1000,10200]
["Palam Vihar, Palam Vihar Extn.",{"$nulls":5},0]
["Sec-10,Gurgaon ",3000,1000,2000,800,200,7000]
["Sec-10, Sec-37 D",{"$nulls":5},0]
["Unitech cyber Park/ Raj Hotel",6000,3200,2800,1500,600,14100]
["southcity-1, sec-40, cyber park, sec 31",{"$nulls":5},0]
["sec44, near by artemis hospital ",{"$nulls":5},0]
["dlf phase-IV/ Galleria Market",3200,1500,2200,1500,600,9000]
["Sushant lok A,B,C block, rethwood estate",{"$nulls":5},0]
["Regency park1,2 Windsor court, leburnum",{"$nulls":5},0]
["Richmond Park",{"$nulls":5},0]
["Iffco chowk/ Fire Station",3100,1600,1800,1000,500,8000]
["South city 1, Sec-31, sushant lok c block, ",{"$nulls":5},0]
["Essel Tower, Sarswati Height , mapple height",{"$nulls":5},0]
["Maruti Vihar ",4200,1800,2500,800,300,9600]
["MarutiVihar, Sarswati Enclave, Chakarpur",{"$nulls":5},0]
["Shankar Chowk",4000,800,1200,800,300,7100]
["Ambience,DLF Phase-3,Cyber Park, ",{"$nulls":5},0]
["Udhyog Vihar ",{"$nulls":5},0]
["Sikanderpur",12000,3400,5600,2000,1000,24000]
["Heritage city, Beverly Park, Sahara Grace,",{"$nulls":5},0]
["Regency Park-2, shiv apartment.",{"$nulls":5},0]
["DLF phase-1,2,3,",{"$nulls":5},0]
["Kapashera-Fun&Food Village ",2000,1600,2000,1000,600,7200]
["Sec-22,23 gurgaon ",{"$nulls":5},0]
["Kapashera-Corporation Bank",1800,1300,1600,1000,800,6500]
["All kapashera ",{"$nulls":5},0]
["Kapashera-Police station",2200,800,1000,500,300,4800]
["Kapashera all farm houses ",{"$nulls":5},0]
["NEW GURGAON ",{"$nulls":5},{"$f":"SUM(B67:F67)","v":0}]
["New Town Heights/Club house",3800,1800,2000,1000,500,9100]
["Sec-82,83,84,85,86,87,88,89,80,91,92,93,94,95",{"$nulls":5},0]
["dlf new height heights, sare homes etc",{"$nulls":5},0]
["vatika town square ",2400,1200,1500,800,600,6500]
["Exclusive vatika India township",{"$nulls":5},0]
["IMT Manesar",1000,800,1000,600,200,3600]
["manesar sec-1 to sec-8 all",{"$nulls":5},0]
["Total Qty",{"$f":"SUM(B3:B74)","v":114300},45000,61800,28100,15100,{"$f":"SUM(G3:G74)","v":264300}]